bitfinex/quotes_SOLUSD_20240808
["timestamp","ask_amount","ask_price","bid_price","bid_amount"]
[1723089112867,20.0,155.42,155.38,16.3507]
[1723089114056,20.0,155.46,155.38,16.3507]
[1723089114260,6.4329,155.45,155.38,16.3507]
[1723089114453,26.664303,155.46,155.38,16.3507]
[1723089114454,20.0,155.44,155.38,16.3507]
[1723089114650,33.097003,155.46,155.38,16.3507]
[1723089114872,6.433,155.45,155.38,16.3507]
[1723089115061,34.3752,155.4,155.34,15.9775]
[1723089115265,27.94,155.38,155.34,15.9775]
[1723089115466,20.0,155.37,155.34,15.9775]
[1723089117144,20.0,155.36,155.34,15.9775]
[1723089117653,20.0,155.37,155.34,15.9775]
[1723089120169,27.94,155.36,155.28,21.8054]
[1723089120378,34.3776,155.34,155.28,21.8054]
[1723089120554,20.0,155.33,155.28,21.8054]
[1723089121262,26.4378,155.34,155.28,21.8054]
[1723089121665,47.94,155.34,155.28,21.8054]
[1723089122461,20.0,155.34,155.28,21.8054]
[1723089122657,8.6158973,155.41,155.28,21.8054]
[1723089122658,47.94,155.37,155.28,21.8054]
[1723089122859,47.94,155.37,155.29,45.0]
[1723089124265,2.59032115,155.39,155.29,45.0]
[1723089124576,6.4371,155.35,155.28,21.8054]
[1723089124774,34.3774,155.34,155.28,21.8054]
[1723089124981,6.4379,155.33,155.28,15.5898]
[1723089125176,27.94,155.34,155.28,15.5898]
[1723089125177,41.04825166,155.34,155.28,15.5898]
[1723089125353,34.61075166,155.34,155.28,15.5898]
[1723089125556,20.0,155.33,155.28,15.5898]
[1723089126073,30.0,155.33,155.28,15.5898]
[1723089126971,30.0,155.33,155.29,45.0]
[1723089127176,30.0,155.33,155.28,15.5898]
[1723089127870,30.0,155.33,155.29,45.0]
[1723089128075,30.0,155.33,155.28,15.5898]
[1723089129589,30.0,155.33,155.29,45.0]
[1723089130449,10.0,155.33,155.29,45.0]
[1723089131283,10.0,155.33,155.28,15.5898]
[1723089132672,20.0,155.32,155.28,15.5898]
[1723089132874,47.94,155.32,155.24,21.643]
[1723089133076,20.0,155.32,155.24,21.643]
[1723089133705,20.0,155.32,155.24,22.43484895]
[1723089133981,20.0,155.32,155.24,21.643]
[1723089135589,20.0,155.32,155.25,0.7916091]
[1723089135882,20.0,155.32,155.25,45.7916091]
[1723089136263,20.0,155.32,155.24,21.643]
[1723089136586,20.0,155.32,155.25,45.0]
[1723089137984,20.0,155.32,155.24,21.643]
[1723089138187,20.0,155.32,155.24,15.278]
[1723089138488,20.0,155.32,155.19,6.0625]
[1723089138489,27.94,155.3,155.2,16.329]
[1723089138716,20.0,155.29,155.2,16.329]
[1723089138892,20.0,155.29,155.2,44.269]
[1723089139082,20.0,155.29,155.22,27.94]
[1723089139588,20.0,155.32,155.24,27.94]
[1723089139778,20.0,155.32,155.25,45.17]
[1723089140168,20.0,155.32,155.24,27.94]
[1723089140488,20.0,155.32,155.25,0.17]
[1723089140895,20.0,155.32,155.23,0.17]
[1723089141075,20.0,155.32,155.23,45.0]
[1723089141768,26.4383,155.32,155.23,45.0]
[1723089141968,20.0,155.32,155.22,27.94]
[1723089143276,20.0,155.32,155.23,45.17]
[1723089144295,20.0,155.32,155.24,1.28771504]
[1723089144483,20.0,155.32,155.24,29.22771504]
[1723089144673,20.0,155.32,155.25,45.0]
[1723089145404,20.0,155.32,155.22,27.94]
[1723089145571,20.0,155.32,155.23,45.0]
[1723089145774,20.0,155.32,155.2,16.329]
[1723089145993,20.0,155.32,155.21,27.94]
[1723089146305,26.4383,155.32,155.21,27.94]
[1723089146478,20.0,155.32,155.21,27.94]
[1723089146975,20.0,155.32,155.22,45.0]
[1723089147174,34.3796,155.29,155.2,16.329]
[1723089147515,26.4403,155.28,155.17,28.7859176]
[1723089147800,6.4414,155.25,155.17,0.8459176]
[1723089147975,20.0,155.24,155.17,0.8459176]
[1723089149088,20.17,155.25,155.17,0.8459176]
[1723089149574,20.0,155.25,155.17,0.8459176]
[1723089150592,20.0,155.25,155.17,45.8459176]
[1723089154698,12.5724,155.27,155.18,27.94]
[1723089154988,6.132,155.27,155.19,45.0]
[1723089155401,6.132,155.27,155.18,27.94]
[1723089156000,6.132,155.27,155.17,0.8459176]
[1723089156208,65.34,155.26,155.17,0.8459176]
[1723089156579,20.34,155.26,155.17,0.8459176]
[1723089157201,20.0,155.26,155.17,0.8459176]
[1723089157504,0.34,155.25,155.17,0.8459176]
[1723089158505,10.0,155.2,155.17,0.8459176]
[1723089164505,6.399,155.19,155.17,0.8459176]
[1723089167832,65.17,155.18,155.08,6.1307]
[1723089168118,65.34,155.18,155.09,27.94]
[1723089170405,20.0,155.18,155.12,27.94]
[1723089171504,20.0,155.18,155.1,27.94]
[1723089172602,20.0,155.18,155.12,27.94]
[1723089173104,26.4441,155.18,155.08,6.1307]
[1723089173307,20.0,155.18,155.1,27.94]
[1723089177518,16.4433,155.2,155.12,27.94]
[1723089177519,10.0,155.2,155.12,27.94]
[1723089177710,10.0,155.2,155.14,27.94]
[1723089178114,10.0,155.2,155.16,27.94]
[1723089179428,10.0,155.2,155.14,27.94]
[1723089179631,10.0,155.2,155.16,27.94]
[1723089179804,10.0,155.2,155.17,45.0]
[1723089180203,10.0,155.2,155.16,27.94]
[1723089181403,10.0,155.2,155.17,45.0]
[1723089181819,10.0,155.2,155.16,27.94]
[1723089184518,10.0,155.2,155.14,27.94]
[1723089184711,20.0,155.19,155.14,27.94]
[1723089184924,20.0,155.19,155.12,27.94]
[1723089185711,20.0,155.19,155.16,19.18]
[1723089186249,20.0,155.19,155.05,16.1399]
[1723089186250,25.6249,155.17,155.05,16.1399]
[1723089186442,77.5705,155.18,155.11,19.18]
[1723089186725,20.0,155.17,155.11,19.18]
[1723089186933,20.0,155.17,155.05,16.1399]
[1723089187106,0.17,155.16,155.11,19.18]
[1723089187539,20.0,155.17,155.12,19.18]
[1723089187942,20.0,155.17,155.05,16.1399]
[1723089188313,20.0,155.17,155.12,6.4465]
[1723089188616,20.0,155.17,155.12,25.6265]
[1723089188834,26.4446,155.17,155.11,19.18]
[1723089189115,6.4454,155.15,155.05,16.1399]
[1723089189320,20.0,155.14,155.09,19.18]
[1723089189537,20.0,155.14,155.1,19.18]
[1723089190138,20.0,155.15,155.1,25.6274]
[1723089190838,0.17,155.14,155.09,19.18]
[1723089191223,20.0,155.15,155.05,16.1399]
[1723089191426,0.17,155.14,155.09,19.18]
[1723089191619,20.17,155.14,155.09,19.18]
[1723089192520,20.17,155.14,155.09,25.6275]
[1723089192727,20.0,155.13,155.09,25.6275]
[1723089192932,0.17,155.16,155.09,25.6275]
[1723089193135,45.34,155.16,155.09,25.6275]
[1723089193330,25.6258,155.14,155.0,15.2226]
[1723089193534,20.17,155.13,155.08,25.6281]
[1723089193839,20.17,155.13,155.09,6.4477]
[1723089194020,20.0,155.13,155.08,25.628]
[1723089194411,20.0,155.13,155.08,6.448]
[1723089194642,20.0,155.13,155.08,19.18]
[1723089194847,20.0,155.13,155.08,25.6282]
[1723089196545,20.0,155.13,155.09,6.4478]
[1723089197318,20.0,155.13,155.08,25.6282]
[1723089197618,20.0,155.13,155.0,16.51224432]
[1723089197619,19.18,155.09,155.01,6.4509]
[1723089197836,19.18,155.09,154.97,6.4525]
[1723089197837,19.18,155.03,154.97,6.4525]
[1723089198020,19.18,155.03,154.93,15.6152]
[1723089198021,4.97255598,155.03,154.93,15.6152]
[1723089198229,15.08835474,155.03,154.93,15.6152]
[1723089198413,20.0,155.02,154.93,15.6152]
[1723089198839,6.68329853,155.01,154.96,6.453]
[1723089199041,19.18,154.97,154.96,6.453]
[1723089199341,6.68329853,155.01,154.95,6.4536]
[1723089199544,20.0,155.0,154.95,6.4536]
[1723089199751,6.68329853,155.01,154.89,47.42]
[1723089200043,20.0,155.0,154.89,28.05]
[1723089200244,48.05,155.0,154.87,22.239]
[1723089200552,28.05,154.98,154.94,6.4537]
[1723089201048,28.05,154.99,154.96,6.4532]
[1723089201651,20.0,155.0,154.93,6.4541]
[1723089201652,48.05,155.0,154.93,6.4541]
[1723089201944,28.05,154.98,154.95,6.4536]
[1723089202535,28.05,154.98,154.87,69.659]
[1723089202740,28.05,154.98,154.95,6.4536]
[1723089203247,28.05,154.99,154.94,6.454]
[1723089203438,20.0,154.98,154.94,6.454]
[1723089203650,20.0,154.98,154.95,6.4535]
[1723089204040,20.0,154.99,154.95,6.4535]
[1723089204530,20.0,154.99,154.96,6.4532]
[1723089205345,20.0,154.99,154.88,1.28968056]
[1723089205523,20.0,154.99,154.89,0.34]
[1723089205729,28.05,154.99,154.89,0.34]
[1723089205947,20.0,154.98,154.89,0.34]
[1723089206153,20.0,154.98,154.95,6.4535]
[1723089206726,28.05,154.97,154.87,22.239]
[1723089207056,28.05,154.89,154.86,0.8459176]
[1723089207554,13.0233,154.96,154.86,0.8459176]
[1723089207759,20.0,154.95,154.86,0.8459176]
[1723089208252,20.0,154.85,154.71,0.0959176]
[1723089208466,20.0,154.85,154.76,6.4615]
[1723089208467,6.458,154.85,154.76,6.4615]
[1723089208781,6.458,154.85,154.71,0.0959176]
[1723089208782,6.3551,154.88,154.73,28.05]
[1723089208946,28.05,154.86,154.79,6.4602]
[1723089209152,6.4563,154.89,154.74,22.5313]
[1723089209153,6.68360113,154.89,154.74,22.5313]
[1723089209340,48.05,154.88,154.82,6.4588]
[1723089209530,20.0,154.88,154.84,6.458]
[1723089209733,20.0,154.88,154.85,6.4577]
[1723089209956,6.3551,154.93,154.81,28.05]
[1723089210164,20.0,154.92,154.87,6.4568]
[1723089210664,20.0,154.92,154.88,6.4565]
[1723089210860,20.0,154.93,154.88,6.4565]
[1723089211039,20.0,154.94,154.83,28.89013402]
[1723089211356,28.05,154.93,154.79,28.05]
[1723089211557,20.0,154.92,154.87,6.4569]
[1723089211737,20.0,154.94,154.87,6.4569]
[1723089212176,26.4537,154.95,154.87,6.4569]
[1723089212861,20.0,154.95,154.88,6.4565]
[1723089214450,26.4537,154.95,154.88,6.4565]
[1723089215079,6.4542,154.94,154.86,6.457]
[1723089215365,20.0,154.93,154.87,6.4569]
[1723089216558,20.0,154.95,154.87,6.4569]
[1723089217368,26.4539,154.95,154.88,6.4565]
[1723089218059,36.4539,154.95,154.88,6.4565]
[1723089218266,36.4537,154.95,154.88,6.4565]
[1723089219050,30.0,154.95,154.89,6.4561]
[1723089220479,0.17,154.94,154.78,15.3778]
[1723089220654,52.02909282,154.94,154.84,6.4582]
[1723089220856,6.4559,154.9,154.83,6.4582]
[1723089221081,20.0,154.89,154.83,6.4582]
[1723089221290,20.0,154.89,154.83,6.4586]
[1723089221677,6.4558,154.9,154.83,6.4586]
[1723089221981,20.0,154.89,154.83,6.4586]
[1723089222354,26.4562,154.89,154.83,6.4586]
[1723089222583,26.4562,154.89,154.84,6.4582]
[1723089222584,20.0,154.89,154.84,6.4582]
[1723089222758,6.4565,154.89,154.81,6.4591]
[1723089223080,20.0,154.88,154.83,6.4586]
[1723089223788,20.0,154.88,154.84,6.4582]
[1723089223970,20.0,154.88,154.78,15.3778]
[1723089223971,26.4559,154.9,154.82,6.4587]
[1723089224170,26.4559,154.9,154.83,6.4585]
[1723089224373,6.4566,154.89,154.78,15.3778]
[1723089224576,20.0,154.88,154.83,6.4586]
[1723089224776,6.335,154.88,154.8,6.4597]
[1723089224960,6.4566,154.88,154.81,6.4595]
[1723089225159,20.0,154.87,154.73,36.1]
[1723089225564,20.0,154.87,154.83,6.4586]
[1723089225867,6.4563,154.89,154.82,6.459]
[1723089226063,20.0,154.88,154.75,19.37]
[1723089226277,6.457,154.88,154.81,6.4593]
[1723089226585,20.0,154.87,154.83,6.4586]
[1723089227377,6.4559,154.9,154.79,36.1]
[1723089227569,6.335,154.93,154.8,0.17]
[1723089227885,6.4562,154.89,154.82,6.4591]
[1723089228060,6.4562,154.89,154.82,6.4589]
[1723089228257,6.335,154.93,154.8,16.6272]
[1723089228569,6.335,154.93,154.81,0.34]
[1723089228763,6.4549,154.92,154.81,0.34]
[1723089229068,36.1,154.87,154.74,12.5401]
[1723089229270,11.54530864,154.87,154.74,6.0777]
[1723089229474,6.4578,154.86,154.74,6.0777]
[1723089229783,20.0,154.85,154.74,6.0777]
[1723089230084,20.0,154.91,154.74,24.4477]
[1723089230278,6.4569,154.88,154.8,6.4598]
[1723089230480,20.0,154.87,154.8,6.4598]
[1723089230655,20.0,154.87,154.76,1.04878344]
[1723089230858,26.4572,154.87,154.77,0.17]
[1723089231087,6.68914574,154.86,154.76,0.34]
[1723089231288,20.0,154.85,154.8,6.4599]
[1723089231778,20.0,154.85,154.81,6.4592]
[1723089232164,20.0,154.85,154.75,55.81]
[1723089232557,20.0,154.85,154.75,19.71]
[1723089232759,20.0,154.85,154.75,55.81]
[1723089232960,20.0,154.85,154.81,6.4594]
[1723089234070,20.0,154.88,154.81,6.4594]
[1723089234560,6.68990426,154.89,154.79,19.37]
[1723089234800,6.68990426,154.89,154.86,6.4573]
[1723089235087,6.68646201,154.93,154.87,6.4569]
[1723089235793,6.68646201,154.93,154.88,6.4564]
[1723089235991,6.68646201,154.93,154.89,6.4561]
[1723089236194,6.68646201,154.93,154.86,15.418]
[1723089236495,6.68646201,154.93,154.88,6.4562]
[1723089236666,10.0,154.95,154.88,6.4562]
[1723089237789,26.4543,154.94,154.86,15.418]
[1723089238195,26.4543,154.94,154.86,21.8753]
[1723089238978,26.4543,154.94,154.87,6.4569]
[1723089240489,20.0,154.94,154.88,6.4565]
[1723089240789,10.0,154.95,154.86,15.418]
[1723089240981,10.0,154.95,154.91,6.4553]
[1723089241177,41.9223,154.94,154.81,6.4594]
[1723089241397,6.4571,154.87,154.8,6.4599]
[1723089241569,6.4566,154.88,154.8,6.4599]
[1723089241774,6.4566,154.88,154.81,6.4594]
[1723089242289,20.0,154.87,154.82,6.459]
[1723089242470,20.0,154.89,154.75,16.32]
[1723089242670,20.0,154.93,154.83,6.4586]
[1723089242885,6.4557,154.9,154.75,16.32]
[1723089243097,20.0,154.89,154.76,1.29154687]
[1723089243391,6.4573,154.87,154.75,16.32]
[1723089243614,20.0,154.86,154.76,1.07897497]
[1723089243779,2.58941274,154.93,154.77,0.17]
[1723089243976,6.4563,154.89,154.77,1.29154635]
[1723089244177,20.0,154.88,154.78,0.17]
[1723089244493,20.0,154.88,154.76,0.17]
[1723089244494,6.457,154.87,154.8,6.4595]
[1723089244684,20.0,154.86,154.75,16.32]
[1723089245004,26.4924,154.88,154.75,16.32]
[1723089245299,6.4579,154.85,154.75,16.32]
[1723089245684,6.4574,154.86,154.79,6.4603]
[1723089245889,20.0,154.85,154.79,6.4603]
[1723089246297,20.0,154.85,154.8,6.4598]
[1723089246478,20.0,154.86,154.75,16.32]
[1723089246777,20.0,154.87,154.76,0.34]
[1723089247697,20.0,154.87,154.81,6.4594]
[1723089247893,26.4571,154.87,154.8,6.4599]
[1723089248597,20.0,154.87,154.81,6.4594]
[1723089248769,6.4575,154.86,154.76,0.34]
[1723089248975,20.0,154.85,154.76,0.34]
[1723089249874,20.0,154.85,154.82,6.459]
[1723089250075,20.0,154.85,154.8,6.4595]
[1723089250297,20.0,154.85,154.81,6.4593]
[1723089250600,20.0,154.87,154.81,6.4593]
[1723089251099,26.4572,154.87,154.8,6.4598]
[1723089251511,26.457,154.87,154.81,6.4595]
[1723089251878,20.0,154.87,154.8,6.4596]
[1723089252078,20.0,154.87,154.76,0.34]
[1723089252498,6.4575,154.86,154.8,6.4598]
[1723089252685,20.0,154.85,154.8,6.4598]
[1723089253301,26.4574,154.86,154.8,6.4598]
[1723089253687,6.4578,154.85,154.76,28.44]
[1723089253885,20.0,154.84,154.79,6.4602]
[1723089254083,25.8223,154.84,154.72,6.69536635]
[1723089254406,6.4599,154.81,154.74,6.4623]
[1723089254700,20.0,154.8,154.74,6.4623]
[1723089255301,26.4174,154.8,154.71,0.0959176]
[1723089255514,28.1,154.79,154.71,0.0959176]
[1723089255803,20.0,154.78,154.71,0.0959176]
[1723089255992,26.4607,154.78,154.71,6.5594176]
[1723089256196,20.0,154.78,154.71,6.5593176]
[1723089256401,20.0,154.78,154.74,6.4624]
[1723089256788,20.0,154.79,154.73,6.4628]
[1723089256983,28.1,154.75,154.71,0.0959176]
[1723089257213,26.4625,154.74,154.62,28.1]
[1723089257384,20.0,154.74,154.55,0.8459176]
[1723089257586,20.0,154.74,154.63,28.1]
[1723089257811,6.4634,154.72,154.65,6.4661]
[1723089257983,20.0,154.71,154.66,6.4657]
[1723089258184,6.4631,154.73,154.59,37.00482973]
[1723089258409,20.0,154.74,154.59,36.19]
[1723089258410,20.0,154.72,154.59,36.19]
[1723089258584,6.4629,154.73,154.66,6.4656]
[1723089258786,20.0,154.72,154.66,6.4656]
[1723089259410,20.0,154.72,154.69,6.4644]
[1723089259593,26.4616,154.76,154.64,15.8461]
[1723089260213,6.462,154.75,154.64,15.8461]
[1723089260392,20.0,154.74,154.64,15.8461]
[1723089260582,20.0,154.76,154.64,15.8461]
[1723089261088,20.0,154.77,154.64,15.8461]
[1723089261699,20.0,154.77,154.6,42.88826401]
[1723089261904,6.86854499,154.76,154.66,6.4657]
[1723089262214,20.0,154.75,154.6,36.19]
[1723089262424,20.0,154.75,154.56,36.19]
[1723089262632,20.0,154.75,154.6,36.19]
[1723089262912,20.0,154.75,154.61,19.37]
[1723089263215,20.0,154.75,154.6,36.19]
[1723089263383,20.0,154.76,154.66,6.4653]
[1723089263591,20.0,154.76,154.61,0.17]
[1723089263801,6.462,154.75,154.69,6.4644]
[1723089264088,20.0,154.74,154.61,0.17]
[1723089264395,6.463,154.73,154.66,6.4657]
[1723089264598,20.0,154.72,154.61,0.17]
[1723089264800,20.0,154.74,154.61,0.34]
[1723089265188,20.0,154.76,154.61,0.34]
[1723089265391,20.0,154.76,154.59,36.19]
[1723089265610,45.34,154.75,154.59,36.19]
[1723089265914,20.0,154.74,154.59,36.19]
[1723089266717,6.69749045,154.77,154.7,15.883]
[1723089266894,6.4605,154.79,154.73,6.4627]
[1723089267225,6.4608,154.78,154.72,6.4632]
[1723089267405,6.69949104,154.79,154.66,15.883]
[1723089267718,6.69949104,154.79,154.74,6.4624]
[1723089267891,6.69949104,154.79,154.66,15.883]
[1723089268091,13.15979104,154.79,154.72,6.4629]
[1723089268309,13.15979104,154.79,154.73,6.4627]
[1723089268502,6.69949104,154.79,154.74,6.4622]
[1723089268687,6.5253,154.82,154.7,26.0085]
[1723089268904,6.5253,154.82,154.77,6.4611]
[1723089269104,6.5253,154.82,154.71,0.17]
[1723089269412,6.5253,154.82,154.71,1.63126485]
[1723089269623,6.69802671,154.85,154.71,1.63126485]
[1723089269916,6.0396,154.86,154.73,35.566]
[1723089270120,6.0396,154.86,154.74,1.6310145]
[1723089270422,6.0396,154.86,154.76,6.4615]
[1723089270735,6.0396,154.86,154.73,16.196]
[1723089271018,12.4971,154.86,154.74,1.29170929]
[1723089271219,6.4586,154.84,154.77,6.461]
[1723089271425,6.4586,154.84,154.73,16.196]
[1723089272119,6.0396,154.86,154.73,16.196]
[1723089272294,6.0396,154.86,154.8,6.4599]
[1723089272498,20.0,154.85,154.8,6.4599]
[1723089273390,20.0,154.85,154.79,6.4603]
[1723089273723,6.69495257,154.88,154.74,55.56]
[1723089273897,6.69495257,154.88,154.83,6.4585]
[1723089274313,6.69495257,154.88,154.81,6.4594]
[1723089274499,6.69495257,154.88,154.82,6.459]
[1723089274696,6.69495257,154.88,154.83,6.4586]
[1723089275016,6.69495257,154.88,154.75,0.34]
[1723089275225,6.69495257,154.88,154.8,6.4599]
[1723089275394,6.69495257,154.88,154.74,6.4467]
[1723089275395,6.69495257,154.88,154.78,6.4607]
[1723089275599,6.4577,154.86,154.74,6.4467]
[1723089276004,6.69495257,154.88,154.74,6.4467]
[1723089276005,26.4579,154.85,154.74,6.4467]
[1723089276322,20.0,154.85,154.78,6.4607]
[1723089276624,20.0,154.87,154.8,6.4599]
[1723089277308,6.4578,154.85,154.78,6.4607]
[1723089277519,20.0,154.84,154.78,6.4607]
[1723089277720,26.4583,154.84,154.78,6.4607]
[1723089278103,20.0,154.84,154.78,6.4607]
[1723089278619,20.0,154.84,154.79,6.4599]
[1723089278902,6.4432,154.84,154.75,6.4619]
[1723089279125,20.0,154.83,154.73,22.6584]
[1723089279434,6.4603,154.79,154.72,6.4632]
[1723089279728,6.4432,154.77,154.72,6.4632]
[1723089279928,20.0,154.76,154.72,6.4632]
[1723089280120,20.0,154.76,154.66,6.3072]
[1723089280707,13.16131846,154.8,154.66,6.3072]
[1723089280903,6.70101846,154.8,154.74,6.4624]
[1723089281132,20.0,154.79,154.76,6.4615]
[1723089281630,20.0,154.79,154.67,55.56]
[1723089281631,20.0,154.79,154.75,6.4618]
[1723089281797,20.0,154.8,154.75,6.4618]
[1723089282201,20.0,154.8,154.67,55.56]
[1723089282406,20.0,154.8,154.68,35.127]
[1723089282603,20.0,154.8,154.77,6.4611]
[1723089283226,20.0,154.8,154.78,6.4606]
[1723089283528,20.0,154.82,154.68,35.127]
[1723089283735,20.0,154.82,154.76,6.4612]
[1723089284031,20.0,154.82,154.77,6.461]
[1723089284228,20.0,154.82,154.68,35.127]
[1723089284618,20.0,154.82,154.77,6.461]
[1723089285028,26.4592,154.82,154.68,35.127]
[1723089285208,26.4592,154.82,154.68,15.757]
[1723089285405,26.4592,154.82,154.75,6.4616]
[1723089285717,20.0,154.82,154.77,6.4611]
[1723089286806,20.0,154.82,154.68,35.127]
[1723089287008,20.0,154.82,154.78,6.4604]
[1723089287221,20.0,154.82,154.77,6.4611]
[1723089287441,20.0,154.82,154.7,36.19]
[1723089287442,20.0,154.82,154.78,6.4607]
[1723089287614,20.0,154.82,154.77,6.4611]
[1723089287807,20.0,154.82,154.7,55.56]
[1723089288008,20.0,154.82,154.77,6.4611]
[1723089288936,20.0,154.82,154.79,6.4603]
[1723089289241,20.0,154.82,154.71,0.34]
[1723089289412,26.4587,154.83,154.76,6.4616]
[1723089289614,20.0,154.83,154.68,34.787]
[1723089289815,20.0,154.84,154.75,6.462]
[1723089290348,6.4591,154.82,154.75,6.462]
[1723089290539,20.0,154.81,154.75,6.462]
[1723089290909,20.0,154.81,154.68,34.787]
[1723089291136,6.4583,154.84,154.69,1.63200197]
[1723089291137,20.0,154.83,154.69,1.63200197]
[1723089291352,26.4587,154.83,154.77,6.4611]
[1723089291652,20.0,154.83,154.77,6.4611]
[1723089292333,20.0,154.83,154.78,6.4607]
[1723089293452,20.0,154.83,154.71,19.37]
[1723089293653,20.0,154.84,154.72,0.34]
[1723089293839,20.0,154.84,154.73,1.19377255]
[1723089294031,20.0,154.84,154.78,6.4606]
[1723089294224,26.4584,154.84,154.78,6.4606]
[1723089294558,20.0,154.84,154.79,6.4603]
[1723089295349,20.0,154.84,154.78,6.4607]
[1723089295735,6.4587,154.83,154.77,6.4611]
[1723089295942,20.0,154.82,154.77,6.4611]
[1723089296526,20.0,154.82,154.74,0.17]
[1723089296723,20.0,154.84,154.74,0.17]
[1723089296945,20.0,154.84,154.78,6.4607]
[1723089299250,20.0,154.84,154.7,36.19]
[1723089299427,6.4587,154.83,154.7,36.19]
[1723089299629,20.0,154.82,154.76,6.4612]
[1723089300043,20.0,154.82,154.77,6.461]
[1723089300441,20.0,154.82,154.7,36.19]
[1723089300638,26.4591,154.82,154.75,6.4616]
[1723089300837,6.4609,154.78,154.72,6.4628]
[1723089301048,6.2363,154.8,154.68,15.417]
[1723089301234,65.34,154.79,154.64,15.5572]
[1723089301432,6.4612,154.77,154.7,6.464]
[1723089301632,20.0,154.76,154.71,6.4633]
[1723089301855,20.0,154.76,154.72,6.4629]
[1723089302161,20.0,154.76,154.71,6.4635]
[1723089302458,8.81825651,154.8,154.6,15.715]
[1723089302459,6.6031,154.75,154.6,15.715]
[1723089302764,20.0,154.74,154.62,6.7020899]
[1723089302929,20.0,154.74,154.72,6.4632]
[1723089304159,13.0355,154.79,154.73,6.4628]
[1723089304366,20.0,154.78,154.72,6.4632]
[1723089304729,6.70147523,154.81,154.67,71.329]
[1723089304960,6.70147523,154.81,154.76,6.4615]
[1723089305333,6.70147523,154.81,154.75,6.462]
[1723089305546,6.348,154.8,154.63,15.769]
[1723089305838,6.348,154.8,154.64,1.01289221]
[1723089306041,6.348,154.8,154.63,15.769]
[1723089306232,26.4604,154.79,154.72,6.463]
[1723089306856,6.4608,154.78,154.71,6.4636]
[1723089307048,20.0,154.77,154.72,6.463]
[1723089307239,20.0,154.77,154.63,35.139]
[1723089307442,20.0,154.77,154.74,6.4623]
[1723089307755,6.348,154.8,154.77,6.4611]
[1723089307963,6.348,154.8,154.71,16.4471]
[1723089308341,6.348,154.8,154.77,6.4611]
[1723089308660,6.69811377,154.83,154.72,0.34]
[1723089308961,12.5729,154.84,154.78,6.4607]
[1723089309139,12.5729,154.84,154.72,0.34]
[1723089309140,6.4588,154.83,154.77,6.4611]
[1723089309337,12.81177445,154.84,154.73,6.4627]
[1723089309634,6.4593,154.82,154.76,6.4616]
[1723089309963,6.4593,154.82,154.75,6.462]